bitfinex-derivatives/quotes_ETHF0:USTF0_20260306
["timestamp","ask_amount","ask_price","bid_price","bid_amount"]
[1772812175982,0.00501865,1978.9,1978.2,3.33637399]
[1772812176191,9.77067952,1979.4,1978.2,3.33637399]
[1772812176493,3.16767952,1979.4,1978.2,3.33637399]
[1772812177189,3.17178815,1979.4,1978.2,3.33637399]
[1772812177392,0.00410863,1979.4,1978.4,3.33196294]
[1772812178284,3.16767952,1979.8,1978.6,3.33196294]
[1772812179090,3.17422257,1979.8,1978.6,3.33196294]
[1772812179491,9.77067952,1979.7,1978.6,3.33196294]
[1772812179992,6.60954305,1979.8,1978.6,3.33196294]
[1772812180289,9.77722257,1979.8,1978.6,3.33196294]
[1772812180992,3.16767952,1979.7,1978.6,3.33196294]
[1772812181391,9.77067952,1979.7,1978.6,3.33196294]
[1772812181591,0.00654305,1979.8,1978.6,3.33196294]
[1772812182589,3.17422257,1979.8,1978.6,3.33196294]
[1772812183191,3.17422257,1979.8,1978.7,3.33196294]
[1772812183796,0.00654305,1979.8,1978.7,3.33196294]
[1772812184095,0.00654305,1979.8,1978.5,10.55612995]
[1772812184096,0.00654305,1979.8,1978.9,3.33196294]
[1772812185386,3.17422257,1979.8,1978.9,3.33196294]
[1772812187498,3.17422257,1979.8,1979.0,3.33196294]
[1772812187893,0.00654305,1979.8,1979.0,3.33196294]
[1772812188096,3.16767952,1980.2,1979.0,3.33196294]
[1772812188297,9.77067952,1980.2,1979.1,3.33196294]
[1772812188495,3.16767952,1980.2,1979.1,3.33196294]
[1772812188698,3.16767952,1979.9,1979.0,3.33196294]
[1772812189099,3.17237098,1979.9,1979.0,3.33196294]
[1772812190094,3.42023952,1979.6,1979.0,3.33196294]
[1772812190500,3.42023952,1979.6,1978.4,12.90011803]
[1772812190800,3.42023952,1979.6,1978.5,3.33196294]
[1772812191002,0.25256,1979.6,1978.5,3.33196294]
[1772812191494,0.25256,1979.6,1978.4,12.90011803]
[1772812191495,3.16767952,1979.7,1978.7,3.33196294]
[1772812191701,3.42021952,1979.8,1978.7,3.33196294]
[1772812192501,3.16767952,1979.6,1978.7,3.33196294]
[1772812194097,3.16767952,1979.8,1978.7,3.33196294]
[1772812195692,6.603,1979.7,1978.7,3.33196294]
[1772812195898,3.12492162,1979.8,1978.7,3.33196294]
[1772812196101,6.60769146,1979.9,1979.1,3.0580906]
[1772812196102,0.00469146,1979.9,1979.1,3.0580906]
[1772812198107,3.12492162,1980.3,1979.1,3.0580906]
[1772812198301,3.12492162,1980.5,1979.3,3.0580906]
[1772812199303,3.13028402,1980.5,1979.3,3.0580906]
[1772812199508,3.12492162,1980.4,1979.3,3.0580906]
[1772812200210,0.0053624,1980.5,1979.5,3.0580906]
[1772812200405,3.13028402,1980.5,1979.5,3.0580906]
[1772812200709,3.12492162,1980.3,1979.5,3.0580906]
[1772812201012,3.12492162,1979.9,1979.2,3.0580906]
[1772812201607,3.12492162,1979.9,1978.9,3.0580906]
[1772812202203,3.02063984,1980.5,1979.6,3.07053731]
[1772812202405,3.02063984,1980.5,1979.6,3.07437828]
[1772812203311,2.55499883,1980.3,1979.6,3.07437828]
[1772812203512,2.55507664,1979.9,1978.9,3.07053731]
[1772812204307,2.55603369,1979.7,1978.9,3.07053731]
[1772812204506,2.55603369,1979.7,1978.9,3.07455754]
[1772812204902,2.21421528,1979.5,1978.9,3.07455754]
[1772812205106,6.85556,1979.6,1978.6,3.07053731]
[1772812205107,2.21421528,1979.3,1978.6,3.07053731]
[1772812205607,2.21421528,1979.3,1978.4,5.16182539]
[1772812205811,2.21514733,1979.1,1977.8,3.07053731]
[1772812206114,2.21514733,1978.7,1977.8,3.07553948]
[1772812206314,2.21514733,1978.7,1977.8,0.00500217]
[1772812206608,2.21514733,1978.5,1977.2,3.07053731]
[1772812207007,8.76676607,1978.4,1977.2,3.07053731]
[1772812207209,2.41649607,1978.3,1976.8,11.26779609]
[1772812207511,2.16376607,1977.9,1976.8,3.78220345]
[1772812207702,2.16376607,1977.9,1976.8,3.78645475]
[1772812207907,6.603,1977.8,1976.8,3.78645475]
[1772812208213,8.76872867,1978.1,1976.8,3.78645475]
[1772812208414,2.16472867,1978.1,1976.8,3.78645475]
[1772812209204,2.41748867,1978.1,1976.8,3.78645475]
[1772812210112,2.11020574,1977.7,1976.8,0.71591744]
[1772812210310,2.11020574,1977.5,1976.8,0.71591744]
[1772812210611,2.11020574,1977.5,1976.6,3.07053731]
[1772812210808,6.605,1977.4,1976.6,3.07053731]
[1772812211116,6.605,1977.6,1976.6,3.07053731]
[1772812211308,1.16020136,1977.4,1976.6,3.07053731]
[1772812211713,1.16020136,1977.4,1976.4,3.07053731]
[1772812211915,1.16020136,1977.4,1975.6,13.95231558]
[1772812211916,1.14139138,1977.2,1976.1,3.07053731]
[1772812212310,1.14139138,1977.0,1975.3,3.07053731]
[1772812212514,3.05284086,1976.4,1975.0,3.07053731]
[1772812212707,3.05284086,1976.2,1975.0,3.07610461]
[1772812212907,6.606,1976.1,1975.0,3.07610461]
[1772812213314,9.65884086,1976.1,1975.0,3.07610461]
[1772812213511,3.05284086,1976.1,1975.0,3.07610461]
[1772812213818,0.0048462,1976.2,1975.0,3.07610461]
[1772812214014,0.0048462,1976.2,1975.2,3.07053731]
[1772812214611,3.05768706,1976.2,1975.2,3.07053731]
[1772812215510,0.0048462,1976.2,1975.2,3.07053731]
[1772812215707,3.05768706,1976.2,1975.2,3.07053731]
[1772812216918,3.05284086,1976.0,1975.2,3.07053731]
[1772812217217,3.05284086,1976.0,1975.0,3.07610461]
[1772812219913,0.0048462,1976.2,1975.0,3.07610461]
[1772812220319,0.0048462,1976.2,1975.1,0.25313]
[1772812220515,0.0048462,1976.2,1975.2,3.07053731]
[1772812220716,3.05284086,1976.7,1975.4,3.07053731]
[1772812221014,4.10422077,1978.5,1975.0,2.11256006]
[1772812221015,3.05284086,1977.0,1975.8,3.07053731]
[1772812221217,2.91152924,1977.4,1976.0,3.07053731]
[1772812221218,3.05284086,1977.4,1976.0,3.07053731]
[1772812221415,3.05284086,1977.6,1976.2,3.07053731]
[1772812221617,3.05284086,1977.4,1976.2,3.07053731]
[1772812221817,3.05645795,1977.4,1976.2,3.07053731]
[1772812222816,3.05645795,1977.4,1976.4,3.07053731]
[1772812223016,3.05645795,1977.4,1976.4,3.07442403]
[1772812223616,0.00361709,1977.4,1976.4,3.07442403]
[1772812224018,3.05645795,1977.4,1976.4,3.07442403]
[1772812224213,0.00361709,1977.4,1976.5,3.07053731]
[1772812224421,3.05284086,1978.0,1976.7,3.07053731]
[1772812225324,3.30560086,1978.0,1976.7,3.07053731]
[1772812225617,0.25282,1977.6,1976.7,3.07053731]
[1772812225815,3.05284086,1977.5,1976.7,3.07053731]
[1772812227814,3.05284086,1977.9,1976.7,3.07053731]
[1772812228214,3.05284086,1977.9,1976.8,3.07053731]
[1772812230724,3.05284086,1977.7,1976.8,3.07053731]
[1772812230920,3.30565086,1977.6,1976.8,3.07053731]
[1772812231126,3.30565086,1977.6,1976.5,3.07053731]
[1772812231620,3.18399959,1977.2,1976.5,3.07053731]
[1772812231820,2.45928449,1976.8,1976.0,3.16419426]
[1772812232920,2.45928449,1976.8,1976.0,3.16996885]
[1772812234323,4.10422077,1977.9,1976.0,3.16996885]
[1772812234324,2.46420429,1977.0,1976.0,3.16996885]
[1772812234522,2.71709429,1977.0,1976.0,3.16996885]
[1772812235321,2.47148265,1976.9,1976.0,3.16996885]
[1772812235522,2.47186793,1976.7,1976.0,3.16996885]
[1772812237625,0.25292,1976.8,1976.0,3.16996885]
[1772812238422,2.44884654,1977.2,1976.0,3.16996885]
[1772812238618,2.44884654,1977.6,1976.2,3.16419426]
[1772812238822,2.44093364,1977.4,1976.4,3.16419426]
[1772812239227,2.44093364,1977.2,1976.4,3.16419426]
[1772812239824,2.68636613,1977.1,1976.1,3.16419426]
[1772812240022,3.00797613,1976.6,1975.3,3.16419426]
[1772812240222,3.26093613,1976.5,1975.3,3.16419426]
[1772812241026,3.26740839,1976.5,1975.3,3.16948503]
[1772812243924,3.04713043,1976.0,1975.3,0.00529077]
[1772812244129,3.30014043,1976.1,1975.3,3.16948503]
[1772812244729,3.30014043,1976.1,1975.3,0.00529077]
[1772812245030,3.31102574,1975.7,1974.5,3.16419426]
[1772812246224,3.18399959,1975.4,1974.5,3.1682187]
[1772812246629,3.18399959,1975.2,1974.5,3.1682187]
[1772812247024,2.75649693,1975.7,1974.5,3.1682187]
[1772812247224,3.18399959,1975.8,1974.5,3.1682187]
[1772812247633,3.18399959,1975.6,1974.5,3.1682187]
[1772812248223,3.18399959,1975.4,1974.5,0.00402444]
[1772812248534,3.18399959,1975.2,1973.5,3.16419426]
[1772812248730,3.18399959,1974.9,1973.5,3.16419426]
[1772812249031,3.43715959,1974.9,1973.5,3.16419426]
[1772812249432,3.44332504,1974.9,1973.5,3.16845125]
[1772812249631,3.18399959,1974.7,1973.5,3.16845125]
[1772812252129,2.95504901,1974.5,1973.5,3.16845125]
[1772812252630,0.2532,1974.6,1973.5,3.16845125]
[1772812252825,3.20883489,1974.6,1973.5,3.16845125]
[1772812253826,2.95563489,1974.6,1973.5,3.16845125]
[1772812254031,2.95029806,1974.4,1973.5,3.16845125]
[1772812254627,2.99793131,1974.6,1973.5,3.16845125]
[1772812255937,3.25114131,1974.6,1973.5,3.16845125]
[1772812256843,0.00616545,1974.9,1973.5,3.16845125]
[1772812256844,2.94687357,1974.9,1973.5,3.16845125]
[1772812257040,2.94070812,1974.7,1973.5,3.16845125]
[1772812257237,2.94070812,1974.3,1973.5,3.16845125]
[1772812257732,0.25323,1974.4,1973.5,3.16845125]
[1772812258040,3.19393812,1974.4,1973.5,3.16845125]
[1772812258641,3.19393812,1974.4,1973.5,2.89774532]
[1772812258945,0.00616545,1974.9,1973.5,2.89774532]
[1772812258946,2.94070812,1974.8,1973.5,2.89774532]
[1772812259137,2.94070812,1974.6,1973.5,2.89774532]
[1772812259338,0.25321,1974.5,1973.5,2.89774532]
[1772812259537,2.94070812,1974.4,1973.5,2.89774532]
[1772812260240,3.19391812,1974.5,1973.5,2.89774532]
[1772812260935,3.19397812,1974.1,1973.5,2.89774532]
[1772812261142,2.94070812,1973.4,1971.9,2.89348833]
[1772812262046,3.01845378,1973.9,1972.5,2.89534389]
[1772812262347,3.27175378,1973.8,1972.5,2.89534389]
[1772812263347,3.27711664,1973.8,1972.5,2.89534389]
[1772812263544,3.01845378,1973.3,1972.5,2.89534389]
[1772812263945,3.01845378,1973.7,1972.5,2.89534389]
[1772812264145,3.01845378,1973.5,1972.5,2.89534389]
[1772812264540,0.25333,1973.6,1972.5,2.89534389]
[1772812265046,3.23119386,1973.6,1972.5,2.89534389]
[1772812267647,3.01845378,1973.1,1972.3,2.89534389]
[1772812268047,3.01845378,1973.6,1972.3,2.89534389]
[1772812268244,3.01845378,1973.6,1972.4,0.25348]
[1772812268547,3.02381664,1973.8,1972.5,2.89534389]
[1772812268943,3.27712664,1973.8,1972.5,2.89534389]
[1772812269453,3.27712664,1973.8,1971.9,0.00644331]
[1772812269454,3.01845378,1973.1,1971.9,2.9017872]
[1772812269852,3.27185378,1973.0,1971.9,2.9017872]
[1772812271347,3.27192378,1972.5,1971.9,0.00644331]
[1772812272151,3.27192378,1972.5,1971.5,3.20967545]
[1772812272350,3.27192378,1972.5,1971.5,0.31433156]
[1772812272549,3.27192378,1972.5,1971.5,3.20967545]
[1772812273158,3.27192378,1972.5,1971.5,3.21362272]
[1772812273953,3.27192378,1972.5,1971.5,0.31827883]
[1772812274457,6.612,1972.9,1971.5,0.31827883]
[1772812274458,3.01845378,1972.0,1971.5,0.31827883]
[1772812274659,2.86816283,1971.8,1970.8,2.89534389]
[1772812274951,0.25357,1971.7,1970.8,2.89534389]
[1772812275152,2.84755816,1970.6,1968.9,2.89534389]
[1772812275352,2.84755816,1970.5,1968.9,2.89534389]
[1772812275551,2.85326547,1970.5,1968.9,2.89965948]
[1772812275746,0.00570731,1970.5,1969.1,2.89534389]
[1772812275953,0.00570731,1970.5,1968.9,0.00431559]
[1772812275954,0.00570731,1970.5,1969.3,2.89534389]
[1772812276556,0.00570731,1970.5,1969.4,2.89534389]
[1772812276955,2.57502529,1971.1,1969.6,2.89534389]
[1772812277154,2.82069371,1971.3,1969.6,2.89534389]
[1772812277856,2.82696554,1971.3,1969.8,2.89534389]
[1772812278459,2.55205959,1970.5,1969.0,2.89534389]
[1772812279058,2.79802938,1970.4,1969.0,2.89534389]
[1772812280153,0.25374,1970.4,1969.1,2.89534389]
[1772812280458,0.25374,1970.4,1969.2,2.89534389]
[1772812280659,2.85287734,1970.4,1969.2,2.89534389]
[1772812281358,2.59913734,1970.4,1969.2,2.89534389]
[1772812281554,2.59214212,1970.7,1969.2,2.89534389]
[1772812281751,2.83832658,1970.6,1969.2,2.89534389]
[1772812282356,2.83839658,1970.1,1969.2,2.89534389]
[1772812282656,2.99828603,1970.4,1969.2,2.89534389]
[1772812282857,3.24464405,1970.3,1969.2,2.89534389]
[1772812283253,3.24477405,1969.3,1968.9,0.00431559]
[1772812283460,0.00412401,1969.3,1968.9,2.89965948]
[1772812283656,3.24482078,1969.6,1968.9,0.00431559]
[1772812283857,3.24482078,1969.6,1968.6,2.89534389]
[1772812284862,0.25391,1969.1,1968.6,2.90033006]
[1772812285257,3.27236378,1969.1,1968.3,2.89534389]
[1772812285461,3.27242378,1968.6,1966.9,2.89534389]
[1772812285655,0.25391,1969.1,1967.3,2.89534389]
[1772812285859,0.00392936,1969.6,1967.7,2.89534389]
[1772812285860,3.27230378,1969.5,1967.7,2.89534389]
[1772812286059,0.00392936,1969.6,1967.9,2.89534389]
[1772812286060,0.25392,1969.0,1967.9,2.89534389]
[1772812286363,0.25392,1969.0,1968.1,2.89534389]
[1772812286763,3.27237378,1969.0,1968.1,2.89534389]
[1772812287159,0.25392,1969.0,1968.1,2.89534389]
[1772812287558,0.00392936,1969.6,1968.1,2.89534389]
[1772812287559,3.01845378,1968.9,1968.1,2.89534389]
[1772812287765,3.01845378,1969.5,1968.1,2.89534389]
[1772812288065,0.00392936,1969.6,1968.1,2.89534389]
[1772812288066,0.25392,1969.0,1968.1,2.89534389]
[1772812289166,3.27237378,1969.0,1968.1,2.89534389]
[1772812289759,3.27243378,1968.5,1967.9,0.00572646]
[1772812290163,0.25398,1968.5,1967.9,2.90107035]
[1772812290968,3.01845378,1969.5,1967.9,2.90107035]
[1772812291261,3.27238378,1969.0,1968.1,2.89534389]
[1772812291472,0.25393,1969.0,1968.1,2.89534389]
[1772812291866,0.25385,1969.5,1968.1,2.89534389]
[1772812292065,3.18253012,1969.5,1968.1,2.89534389]
[1772812292464,0.25385,1969.5,1968.1,2.89534389]
[1772812293169,0.25385,1969.5,1968.3,2.94541335]
[1772812293370,0.25391,1969.1,1968.3,2.94541335]
[1772812293661,2.92868012,1969.5,1968.3,2.94541335]
[1772812293869,0.25777936,1969.6,1968.3,2.94541335]
[1772812294460,0.25777936,1969.6,1968.5,2.94541335]
[1772812294867,2.92868012,1970.0,1968.5,2.94541335]
[1772812295062,0.35095467,1970.7,1968.5,2.94541335]
[1772812295373,2.92868012,1970.4,1968.7,2.94541335]
[1772812295564,0.2538,1970.0,1968.7,2.94541335]
[1772812295767,0.2538,1970.0,1968.0,2.08970798]
[1772812295768,0.25382,1969.8,1968.9,2.94541335]
[1772812295969,0.25382,1969.8,1969.1,2.94541335]
[1772812296165,0.25382,1969.8,1969.3,2.94541335]
[1772812296360,0.0050511,1970.0,1969.3,2.95061724]
[1772812296863,0.25376,1970.3,1969.3,2.95061724]
[1772812297466,0.25383,1969.8,1969.3,2.95061724]
[1772812297666,0.25383,1969.8,1969.5,2.94541335]
[1772812297964,3.18244012,1970.3,1969.6,10.76541335]
[1772812298165,0.25376,1970.3,1969.8,2.94541335]
[1772812298364,0.25374,1970.4,1969.8,2.94541335]
[1772812298666,2.92868012,1971.2,1970.0,2.94541335]
[1772812298865,3.18236012,1970.9,1970.2,2.94541335]
[1772812299062,0.25374,1970.5,1970.2,2.94541335]
[1772812299668,2.92868012,1970.9,1970.2,2.94541335]
[1772812299866,0.25374,1970.5,1969.5,2.94541335]
[1772812300065,0.25383,1969.7,1969.3,2.95061724]
[1772812300267,0.25900005,1969.7,1969.3,2.95061724]
[1772812300466,0.25900005,1969.7,1969.3,0.00520389]
[1772812300664,3.18256012,1969.3,1968.3,2.94541335]
[1772812300869,3.18256012,1969.3,1968.4,2.94541335]
[1772812301063,3.18256012,1969.3,1967.7,2.94541335]
[1772812301264,3.18262012,1968.9,1967.9,2.94541335]
[1772812301468,3.18262012,1968.9,1968.0,2.94541335]
[1772812301669,3.18262012,1968.9,1968.0,0.00417678]
[1772812302066,0.25394,1968.8,1966.9,2.21238492]
[1772812302266,2.92868012,1967.9,1964.6,2.94541335]
[1772812302470,2.92868012,1967.4,1965.5,2.94541335]
[1772812302673,0.25406,1967.9,1966.1,2.94541335]
[1772812302967,2.92868012,1968.5,1966.6,2.94541335]
[1772812303270,2.934673,1968.5,1966.8,2.94541335]
[1772812303467,2.92868012,1968.3,1967.0,2.94541335]
[1772812303672,2.92868012,1968.3,1967.2,2.94541335]
[1772812304066,2.92868012,1968.1,1966.9,2.94541335]
[1772812304270,2.92868012,1968.1,1967.0,2.94541335]
[1772812304575,2.92868012,1968.1,1966.9,7.655]
[1772812304576,0.00599288,1968.5,1967.1,2.94541335]
[1772812304776,2.92868012,1969.2,1967.3,2.94541335]
[1772812305077,2.92868012,1969.2,1968.0,2.94541335]
[1772812306173,2.92868012,1969.0,1968.0,2.94961172]
[1772812306376,2.92868012,1969.0,1968.0,0.00419837]
[1772812306576,0.25391,1969.1,1968.0,4.14260613]
[1772812306777,0.00443196,1969.2,1968.2,2.94541335]
[1772812306978,0.00443196,1969.2,1968.3,10.69241335]
[1772812307173,2.93311208,1969.2,1968.4,7.758]
[1772812307379,2.93311208,1969.2,1968.4,10.70341335]
[1772812307579,2.93311208,1969.2,1968.5,7.779]
[1772812307779,2.93311208,1969.2,1968.5,2.94541335]
[1772812307974,0.00443196,1969.2,1968.5,2.94541335]
[1772812308180,0.00443196,1969.2,1968.7,2.94541335]
[1772812308478,3.18250012,1969.8,1968.8,2.94541335]
[1772812309281,3.18250012,1969.8,1968.6,7.859]
[1772812309481,3.18795841,1969.8,1968.6,2.94541335]
[1772812310182,3.18795841,1969.8,1968.8,2.94541335]
[1772812310383,3.18795841,1969.8,1968.8,10.82541335]
[1772812310681,3.18795841,1969.8,1968.8,2.94541335]
[1772812311777,3.18257012,1969.2,1968.5,2.94541335]
[1772812312779,3.18257012,1969.2,1968.1,2.94541335]
[1772812312979,3.18264012,1968.7,1968.0,0.00419837]
[1772812313282,3.18257012,1969.3,1968.0,2.94961172]
[1772812313476,3.18257012,1969.3,1968.4,2.94541335]
[1772812313878,0.25389,1969.3,1968.6,2.94541335]
[1772812314074,2.92868012,1969.6,1968.6,2.94541335]
[1772812314279,2.92868012,1969.6,1968.8,2.94541335]
[1772812314983,0.25385,1969.5,1968.8,2.94541335]
[1772812315285,3.18253012,1969.5,1968.1,2.94541335]
[1772812315474,0.25392,1969.0,1968.3,2.94541335]
[1772812315679,0.25392,1969.0,1968.4,10.60170884]
[1772812315878,0.25392,1969.0,1968.5,2.72570884]
[1772812316385,0.25392,1969.0,1968.7,2.72570884]
[1772812316779,0.25392,1969.0,1968.7,3.91870325]
[1772812316974,0.00545829,1969.8,1968.8,2.72570884]
[1772812316975,3.14560139,1969.5,1968.8,2.72570884]
[1772812317283,0.25386,1969.5,1968.8,2.72570884]
[1772812317483,3.14560139,1969.5,1968.8,2.72570884]
[1772812317780,2.89174139,1969.5,1968.1,2.72570884]
[1772812318085,0.25394,1968.9,1968.1,2.72570884]
[1772812318785,0.25394,1968.9,1968.2,7.994]
[1772812318983,3.14568139,1968.9,1968.4,2.72570884]
[1772812319184,3.14568139,1968.9,1968.1,2.72570884]
[1772812319378,3.14568139,1968.9,1968.2,3.91870325]
[1772812319583,3.14568139,1968.9,1968.2,2.72570884]
[1772812319986,0.25394,1968.9,1968.3,2.72570884]
[1772812320385,0.25399,1968.5,1968.1,2.72570884]
[1772812320578,4.15616469,1969.7,1968.1,2.72570884]
[1772812320779,0.25391,1969.1,1968.1,2.72570884]
[1772812321185,2.89174139,1969.7,1968.5,2.72570884]
[1772812321387,3.14562139,1969.3,1968.4,2.72570884]
[1772812321687,3.14562139,1969.3,1968.5,2.63951311]
[1772812321887,0.25388,1969.3,1968.5,2.63951311]
[1772812322084,2.97191093,1969.8,1969.2,2.63951311]
[1772812322284,0.25393,1969.0,1968.8,8.089]
[1772812322478,0.25393,1969.0,1968.5,2.63951311]
[1772812322479,0.25393,1969.0,1968.5,8.084]
[1772812322685,0.25393,1969.0,1968.8,1.19299441]
[1772812322985,0.25385,1969.5,1968.9,2.63951311]
[1772812323382,2.96647264,1969.5,1968.9,10.74551311]
[1772812323579,2.71808093,1969.8,1968.9,2.63951311]
[1772812324189,0.25385,1969.6,1969.0,2.63951311]
[1772812324684,0.00545829,1969.8,1969.4,3.83250752]
[1772812324885,2.96645264,1969.7,1969.1,2.63951311]
[1772812325090,0.25383,1969.7,1969.1,2.63951311]
[1772812325583,0.25383,1969.7,1969.2,1.19299441]
[1772812325779,0.25383,1969.7,1969.3,2.63951311]
[1772812325986,0.25383,1969.7,1969.3,2.64358558]
[1772812326586,0.25388,1969.3,1968.8,2.63951311]
[1772812326885,0.00545829,1969.8,1968.8,2.63951311]
[1772812327286,0.00545829,1969.8,1969.2,2.63951311]
[1772812327591,0.25928829,1969.8,1969.4,2.63951311]
[1772812327790,0.25928829,1969.8,1969.5,2.63951311]
[1772812327988,2.71262264,1970.0,1969.5,2.63951311]
[1772812328189,2.71262264,1970.2,1969.6,2.63951311]
[1772812328388,0.25383,1969.8,1969.6,2.63951311]
[1772812328592,2.71262264,1970.8,1969.6,2.63951311]
[1772812328790,2.71262264,1970.6,1969.6,2.63951311]
[1772812328991,0.25376,1970.3,1969.6,2.63951311]
[1772812329294,0.25376,1970.3,1969.2,0.00531483]
[1772812329295,2.71262264,1970.4,1969.7,2.63951311]
[1772812329488,0.25378,1970.1,1969.8,10.84951311]
[1772812329683,2.96640264,1970.1,1969.3,2.63951311]
[1772812329887,2.96640264,1970.1,1969.4,8.216]
[1772812330087,2.96640264,1970.1,1969.4,10.85551311]
[1772812330287,0.25378,1970.1,1969.5,2.63951311]
[1772812330687,2.71262264,1970.0,1969.6,1.19299441]
[1772812331083,0.2538,1969.9,1969.5,10.86451311]
[1772812331286,0.2538,1969.9,1969.6,3.83250752]
[1772812331486,2.71262264,1970.2,1969.6,2.63951311]
[1772812331687,2.71262264,1970.2,1969.6,3.83250752]
[1772812331888,0.2538,1969.9,1969.4,2.63951311]
[1772812332186,0.2538,1969.9,1969.6,2.63951311]
[1772812332387,0.2538,1969.9,1969.5,2.63951311]
[1772812332788,0.2538,1969.9,1969.8,0.68584304]
[1772812332988,2.71262264,1970.5,1969.8,0.68584304]
[1772812333186,2.96642264,1970.0,1969.6,8.25]
[1772812333387,2.96642264,1970.0,1969.3,2.63951311]
[1772812333593,2.96642264,1970.0,1969.2,0.00531483]
[1772812333793,2.96642264,1970.0,1969.2,8.26031483]
[1772812333982,0.2538,1970.0,1969.5,2.63951311]
[1772812334188,4.16215363,1970.6,1969.5,2.63951311]
[1772812334189,2.96635264,1970.5,1969.5,2.63951311]
[1772812334492,2.96635264,1970.5,1969.8,2.75741615]
[1772812334692,2.96635264,1970.5,1969.9,2.63951311]
[1772812335090,0.00598894,1970.6,1970.2,2.63951311]
[1772812335391,0.25369,1970.8,1970.2,2.63951311]
[1772812335692,2.96631264,1970.8,1970.3,0.11790304]
[1772812335888,2.96631264,1970.8,1969.3,2.63951311]
[1772812336090,2.96631264,1970.8,1969.9,2.63951311]
[1772812336290,2.97165546,1970.8,1970.1,2.63951311]
[1772812336491,2.97165546,1970.8,1970.3,2.75741615]
[1772812336686,2.96637264,1970.4,1969.8,10.91751311]
[1772812336887,2.96637264,1970.4,1969.8,2.63951311]
[1772812337091,0.2538,1970.0,1969.4,10.91951311]
[1772812337394,0.2538,1970.0,1969.5,2.63951311]
[1772812337585,0.2538,1970.0,1969.8,0.11790304]
[1772812337788,0.2538,1970.0,1969.5,10.92451311]
[1772812337984,0.2538,1970.0,1969.9,0.11790304]
[1772812338186,2.71262264,1970.4,1969.9,0.11790304]
[1772812338494,2.96642264,1970.0,1969.2,2.64482794]
[1772812338796,0.2538,1970.0,1969.4,2.63951311]
[1772812339093,0.2538,1970.0,1969.7,2.63951311]
[1772812339292,2.96642264,1970.0,1969.4,2.63951311]
[1772812339494,2.96642264,1970.0,1969.5,8.294]
[1772812339696,2.96642264,1970.0,1969.7,0.11790304]
[1772812339898,0.2538,1970.0,1969.6,2.63951311]
[1772812340091,2.71262264,1970.3,1969.9,0.11790304]
[1772812340292,2.71262264,1970.3,1969.6,2.63951311]
[1772812340597,0.2538,1970.0,1969.9,0.11790304]
[1772812340794,2.71262264,1970.3,1969.9,0.11790304]
[1772812340994,0.2538,1970.0,1969.6,2.63951311]
[1772812341196,0.2538,1970.0,1969.9,0.11790304]
[1772812341391,2.71262264,1970.3,1969.9,0.11790304]
[1772812341597,2.71262264,1970.1,1969.6,10.94251311]
[1772812341792,2.96641264,1970.0,1969.3,2.63951311]
[1772812342094,7.87281612,1970.8,1969.2,0.00531483]
[1772812342095,0.25385,1969.5,1969.2,0.00531483]
[1772812342294,2.96647264,1969.5,1968.9,10.94551311]
[1772812342598,2.71262264,1969.0,1968.3,2.63951311]
[1772812342787,0.25391,1969.1,1968.3,2.63951311]
[1772812343190,0.25391,1969.1,1968.3,2.64448524]
[1772812343495,0.2589604,1969.1,1968.5,2.63951311]
[1772812343696,0.2589604,1969.1,1968.7,2.63951311]
[1772812344098,0.2589604,1969.1,1968.6,8.313]
[1772812344295,0.2589604,1969.1,1968.6,10.95251311]
[1772812344494,0.2589604,1969.1,1968.7,2.63951311]
[1772812345199,2.96646264,1969.6,1968.7,2.63951311]
[1772812345795,2.96646264,1969.6,1968.8,8.319]
[1772812345997,2.96652264,1969.2,1968.7,2.63951311]
[1772812346202,2.96652264,1969.2,1968.7,8.32]
[1772812346499,2.96659264,1968.6,1968.3,0.00497213]
[1772812346699,2.96659264,1968.6,1968.1,2.63951311]
[1772812346700,2.96659264,1968.6,1968.1,10.96151311]
[1772812346890,2.96659264,1968.6,1967.3,2.36798009]
[1772812346891,2.96659264,1968.6,1967.5,10.366]
[1772812347097,2.96659264,1968.6,1967.7,2.63951311]
[1772812347302,2.96665264,1968.2,1967.8,8.325]
[1772812347503,2.71262264,1968.5,1967.9,2.63951311]
[1772812347707,2.71762737,1968.5,1967.9,2.6457516]
[1772812348103,2.96662264,1968.4,1967.9,2.6457516]
[1772812348308,2.96662264,1968.4,1967.9,8.328]
[1772812348508,2.96662264,1968.4,1967.9,10.96751311]
[1772812348706,0.00500473,1968.5,1968.0,2.63951311]
[1772812348906,2.96656264,1968.9,1968.0,2.63951311]
[1772812349304,2.96656264,1968.9,1968.1,8.332]
[1772812349510,2.96656264,1968.9,1968.1,10.97151311]
[1772812349809,2.96656264,1968.9,1968.2,2.63951311]
[1772812350006,0.00446048,1968.9,1968.2,2.63951311]
[1772812350213,2.71262264,1969.1,1968.2,2.64542025]
[1772812350415,2.96654264,1969.0,1968.2,2.64542025]
[1772812350706,2.96654264,1969.0,1967.6,2.31326097]
[1772812350707,5.75257048,1969.0,1968.1,8.336]
[1772812350911,2.96659264,1968.7,1967.4,2.63951311]
[1772812351113,0.25397,1968.7,1967.7,2.63951311]
[1772812351314,2.96659264,1968.7,1967.9,2.63951311]
[1772812351515,2.96659264,1968.7,1967.9,10.97751311]
[1772812351811,2.96659264,1968.7,1965.6,26.39454595]
[1772812351812,0.25405,1968.0,1967.1,2.85439953]
[1772812352114,2.73574259,1967.9,1967.1,2.85439953]
[1772812352317,2.98981259,1967.8,1967.1,11.19539953]
[1772812352608,2.98981259,1967.8,1966.9,2.85439953]
[1772812352818,2.98981259,1967.8,1967.1,2.85439953]
[1772812353111,2.98981259,1967.8,1967.2,8.343]
[1772812353314,2.98981259,1967.8,1967.1,2.85439953]
[1772812353515,2.98981259,1967.8,1967.2,8.344]
[1772812353906,2.98981259,1967.8,1967.1,2.85439953]
[1772812354312,2.98981259,1967.8,1966.9,0.00590999]
[1772812354518,2.98981259,1967.8,1967.0,2.85439953]
[1772812354715,0.25407,1967.8,1967.0,2.85439953]
[1772812354914,2.73574259,1968.2,1967.0,2.85439953]
[1772812355116,2.98977259,1968.1,1967.0,2.85439953]
[1772812355309,0.25409,1967.7,1967.1,11.20239953]
[1772812355517,2.73574259,1967.8,1967.2,2.85439953]
[1772812355717,0.25403,1968.2,1967.2,2.85439953]
[1772812356419,0.25408,1967.8,1967.2,2.85439953]
[1772812356719,2.98982259,1967.8,1967.0,11.20339953]
[1772812357414,2.98982259,1967.8,1967.0,2.85439953]
[1772812357618,2.98982259,1967.8,1967.1,8.35]
[1772812357818,2.98982259,1967.8,1967.2,8.351]
[1772812358015,2.98982259,1967.8,1967.2,11.20539953]
[1772812358222,0.25408,1967.8,1967.3,2.85439953]
[1772812358419,2.98982259,1967.8,1967.0,2.85439953]
[1772812358611,2.98982259,1967.8,1967.1,8.352]
[1772812358817,2.98982259,1967.8,1967.1,11.20639953]
[1772812359015,2.98982259,1967.8,1967.2,8.352]
[1772812359418,2.98976259,1968.3,1967.3,2.85439953]